fUSD/lending_fUSD_20240713
["ID","MTS","AMOUNT","RATE_DAILY","PERIOD"]
[331915436,1720835440735,-538.0,0.00014,2]
[331915437,1720835440744,-5506.38430787,0.00014,2]
[331915438,1720835440755,-177864.30631538,0.00014,2]
[331915439,1720835440765,-500.0,0.00014,2]
[331915440,1720835440775,-6695.51360038,0.00014,2]
[331915441,1720835440786,-1009.71667059,0.00014,2]
[331915442,1720835440797,-9311.48751274,0.00014,2]
[331915443,1720835440808,-403.47012699,0.00014,2]
[331915444,1720835440819,-265.1286,0.00014,2]
[331915445,1720835440830,-413.7332465,0.00014,2]
[331915446,1720835440841,-1058.18044309,0.00014,2]
[331915447,1720835440852,-222613.45660476,0.00014,2]
[331915448,1720835440862,-1148.69882502,0.00014,2]
[331915449,1720835440871,-850182.47109453,0.00014,2]
[331915450,1720835440883,-1192.0,0.00014,2]
[331915451,1720835440894,-1852.95989709,0.00014,2]
[331915452,1720835440905,-15591.45045805,0.00014,2]
[331915453,1720835440929,-348.922617,0.00014,2]
[331915454,1720835440940,-67829.63283316,0.00014,2]
[331915491,1720835443395,-445.33590592,0.00013999,2]
[331915493,1720835443405,-15.96598444,0.00014,2]
[331915495,1720835443416,-2310.11054467,0.00014,2]
[331915497,1720835443427,-261.4769987,0.00014,2]
[331915501,1720835443439,-3291.55431609,0.00014,2]
[331915524,1720835443572,-19437.75170967,0.00014,2]
[331915547,1720835444891,-9740.50564142,0.00014,2]
[331915548,1720835444902,-9035.707166,0.00014,2]
[331915549,1720835444914,-599.77557746,0.00014,2]
[331915550,1720835444926,-1200.25651494,0.00014,2]
[331915551,1720835444938,-397.00005046,0.00014,2]
[331915552,1720835444950,-365.0,0.00014,2]
[331915553,1720835444971,-822.9747023,0.00014,2]
[331915554,1720835444982,-6099.87879838,0.00014,2]
[331915555,1720835446607,-227.34202992,0.00012273,2]
[331915556,1720835446618,-169.83217224,0.000139,2]
[331915557,1720835446627,-222.66795296,0.00013999,2]
[331915558,1720835446643,-329.80784488,0.00014,2]
[331915559,1720835446655,-349.999995,0.00014,2]
[331915560,1720835446666,-2066.50353201,0.00014,2]
[331915561,1720835446677,-2103.96619709,0.00014,2]
[331915562,1720835446688,-4803.45941549,0.00014,2]
[331915563,1720835446699,-51860.20552712,0.00014,2]
[331915564,1720835446711,-459.4508895,0.00014,2]
[331915565,1720835446723,-339.03648826,0.00014,2]
[331915566,1720835446856,-8259.64506002,0.00014,2]
[331915567,1720835446868,-16851.56,0.00014,2]
[331915568,1720835446881,-2172.10573436,0.00014,2]
[331915569,1720835446893,-5322.75488516,0.00014,2]
[331915570,1720835446904,-418.16808575,0.00014,2]
[331915571,1720835446915,-565.134902,0.00014,2]
[331915572,1720835446928,-264.208,0.00014,2]
[331915573,1720835446941,-2871.0340909,0.00014,2]
[331915574,1720835446956,-1323.72452143,0.00014,2]
[331915575,1720835446969,-432.05266282,0.00014,2]
[331915576,1720835446983,-6043.73971547,0.00014,2]
[331915577,1720835446996,-10496.12538423,0.00014,2]
[331915581,1720835630520,442.05,0.0001113,2]
[331915584,1720836164033,155.55381986,0.00011199,2]
[331915585,1720836262269,446.97,0.00010632,2]
[331915590,1720836486663,1294.75908348,0.00011199,2]
[331915591,1720836486692,1571.28002601,0.00011199,2]
[331915594,1720836531907,304.78291063,0.00011199,2]
[331915616,1720836572938,2380.46634958,0.00011199,2]
[331915619,1720836632488,-1406.03207656,0.00012,2]
[331915620,1720836632498,-247.0,0.00012017,2]
[331915621,1720836632507,-369.39280604,0.00012273,2]
[331915622,1720836632516,-279.10044859,0.00012273,2]
[331915623,1720836632525,-1631.50135618,0.00012302,2]
[331915624,1720836632534,-180.72580021,0.00012398,2]
[331915626,1720836632543,-92.23467534,0.00012462,2]
[331915628,1720836632554,-157.76532466,0.00012462,2]
[331915629,1720836632563,-105.97867534,0.00012481,2]
[331915630,1720836632574,-527.322701,0.00012481,2]
[331915631,1720836632586,-2262.25562924,0.00012481,2]
[331915632,1720836632596,-397.50299442,0.00012481,2]
[331915633,1720836632605,-1852.42,0.00012482,2]
[331915634,1720836632614,-533.36340669,0.00012527,2]
[331915635,1720836632685,-466.63659331,0.00012527,2]
[331915636,1720836632695,-250.0,0.0001253,2]
[331915637,1720836632704,-184.03,0.00012533,2]
[331915638,1720836632713,-300.0,0.00012639,2]
[331915639,1720836632723,-5458.7405007,0.0001264,2]
[331915640,1720836632734,-20097.6394993,0.0001264,2]
[331915641,1720836632743,-269.97,0.00012845,2]
[331915642,1720836632751,-269.97,0.00012848,2]
[331915643,1720836632760,-269.97,0.00012852,2]
[331915644,1720836632770,-269.97,0.00012855,2]
[331915645,1720836632779,-269.97,0.00012858,2]
[331915646,1720836632787,-269.97,0.00012862,2]
[331915647,1720836632796,-269.97,0.00012865,2]
[331915648,1720836632805,-269.97,0.00012868,2]
[331915649,1720836632814,-269.97,0.00012872,2]
[331915650,1720836632823,-269.97,0.00012875,2]
[331915651,1720836632833,-269.97,0.00012879,2]
[331915652,1720836632842,-269.97,0.00012882,2]
[331915653,1720836632851,-269.97,0.00012885,2]
[331915654,1720836632860,-269.97,0.00012889,2]
[331915655,1720836632869,-150.0,0.00012892,2]
[331915656,1720836632879,-269.97,0.00012892,2]
[331915657,1720836632888,-269.97,0.00012895,2]
[331915658,1720836632897,-446.97,0.00012896,2]
[331915659,1720836632907,-269.97,0.00012899,2]
[331915660,1720836632916,-269.97,0.00012902,2]
[331915661,1720836632926,-269.97,0.00012906,2]
[331915662,1720836632935,-269.97,0.00012909,2]
[331915663,1720836632944,-1009.02573888,0.00012998,2]
[331915664,1720836632954,-12869.98771678,0.00012999,2]
[331915665,1720836632967,-778.63384695,0.00012999,2]
[331915666,1720836632978,-2015.29501095,0.00012999,2]
[331915667,1720836632989,-404.0,0.00012999,2]
[331915668,1720836633000,-621.77146932,0.00012999,2]
[331915669,1720836633012,-883.97785601,0.00012999,2]
[331915670,1720836633022,-450.25,0.00012999,2]
[331915671,1720836633033,-2437.14912999,0.00012999,2]
[331915672,1720836633049,-9510.898581,0.00012999,2]
[331915673,1720836633059,-876.76264933,0.00012999,2]
[331915693,1720836639625,-384.30158449,0.00012999,2]
[331915694,1720836639638,-405.79384232,0.00012999,2]
[331915695,1720836639650,-2125.34602237,0.00012999,2]
[331915696,1720836639663,-48107.24197719,0.00012999,2]
[331915697,1720836639672,-533.34291699,0.00013,2]
[331915698,1720836639682,-300.0,0.00013,2]
[331915699,1720836639693,-171.0,0.00013062,2]
[331915700,1720836639703,-1208.56779307,0.00013128,2]
[331915701,1720836639713,-855.07,0.00013141,2]
[331915702,1720836639722,-261.93,0.00013148,2]
[331915703,1720836639732,-787.92198269,0.00013272,2]
[331915704,1720836639741,-165.07,0.00013278,2]
[331915705,1720836639750,-529.13,0.00013278,2]
[331915706,1720836639761,-529.13,0.00013278,2]
[331915707,1720836639770,-528.41,0.00013278,2]
[331915708,1720836639779,-5835.63322451,0.00013288,2]
[331915709,1720836639788,-549.42149164,0.00013543,2]
[331915710,1720836639797,-304.78291063,0.00013543,2]
[331915711,1720836639806,-150.0,0.00013552,2]
[331915712,1720836639816,-1380.5871,0.00013653,2]
[331915713,1720836639825,-161.021213,0.00013667,2]
[331915714,1720836639834,-151.853453,0.00013667,2]
[331915715,1720836639843,-369.268484,0.00013667,2]
[331915716,1720836639852,-834.04,0.00013699,2]
[331915717,1720836639861,-1281.86,0.00013699,2]
[331915718,1720836639871,-250.0,0.00013699,2]
[331915719,1720836639881,-150.0,0.00013718,2]
[331915720,1720836639891,-5000.0,0.00013719,2]
[331915721,1720836639900,-150.0,0.00013725,2]
[331915722,1720836639910,-150.0,0.00013727,2]
[331915723,1720836639919,-150.0,0.00013728,2]
[331915724,1720836639928,-150.0,0.00013729,2]
[331915725,1720836639940,-150.0,0.00013733,2]
[331915726,1720836639951,-529.36820483,0.00013736,2]
[331915727,1720836639961,-150.0,0.00013736,2]
[331915728,1720836639972,-150.0,0.00013739,2]
[331915729,1720836639982,-150.0,0.0001374,2]
[331915730,1720836639992,-150.0,0.0001374,2]
[331915731,1720836640002,-150.0,0.00013741,2]
[331915732,1720836640012,-150.0,0.00013744,2]
[331915733,1720836640023,-150.0,0.0001375,2]
[331915734,1720836640032,-150.0,0.0001375,2]
[331915735,1720836640041,-150.0,0.00013753,2]
[331915736,1720836640051,-150.0,0.00013753,2]
[331915737,1720836640060,-150.0,0.00013755,2]
[331915738,1720836640072,-150.0,0.00013757,2]
[331915739,1720836640082,-616.18959064,0.00013759,2]
[331915740,1720836640092,-793.53001357,0.00013759,2]
[331915741,1720836640101,-150.0,0.0001376,2]
[331915742,1720836640110,-150.0,0.0001376,2]
[331915743,1720836640119,-150.0,0.00013764,2]
[331915744,1720836640129,-150.0,0.00013765,2]
[331915745,1720836640140,-150.0,0.00013771,2]
[331915746,1720836640150,-150.0,0.00013771,2]
[331915747,1720836640161,-150.0,0.00013771,2]
[331915748,1720836640170,-150.0,0.00013775,2]
[331915749,1720836640180,-150.0,0.00013776,2]
[331915750,1720836640190,-150.0,0.00013782,2]
[331915751,1720836640200,-159.11328051,0.0001379,2]
[331915752,1720836640211,-159.11328043,0.0001379,2]
[331915753,1720836640219,-159.11328043,0.0001379,2]
[331915754,1720836640230,-159.11328043,0.0001379,2]
[331915755,1720836640240,-159.11328043,0.0001379,2]
[331915756,1720836640251,-150.0,0.00013796,2]
[331915757,1720836640261,-278.46201993,0.00013799,2]
[331915758,1720836640272,-278.46201988,0.00013799,2]
[331915759,1720836640282,-278.46201988,0.00013799,2]
[331915760,1720836640293,-278.46201988,0.00013799,2]
[331915761,1720836640303,-278.46201988,0.00013799,2]
[331915762,1720836640315,-278.46201988,0.00013799,2]
[331915763,1720836640327,-159.11328043,0.000138,2]
[331915764,1720836640340,-367.1890923,0.00013802,2]
[331915765,1720836640350,-150.0,0.00013811,2]
[331915766,1720836640361,-150.0,0.00013814,2]
[331915767,1720836640373,-150.0,0.00013816,2]
[331915768,1720836640384,-150.0,0.00013818,2]
[331915769,1720836640396,-278.46201988,0.00013818,2]
[331915770,1720836640408,-150.0,0.00013821,2]
[331915771,1720836640418,-150.0,0.00013822,2]
[331915772,1720836640428,-600.0,0.00013825,2]
[331915773,1720836640440,-159.11328043,0.00013825,2]
[331915774,1720836640453,-150.0,0.00013829,2]
[331915775,1720836640463,-150.0,0.00013832,2]
[331915776,1720836640474,-150.0,0.00013834,2]
[331915777,1720836640484,-151.853453,0.00013838,2]
[331915778,1720836640496,-369.268484,0.00013838,2]
[331915779,1720836640506,-150.0,0.00013839,2]
[331915780,1720836640515,-150.0,0.00013841,2]
[331915781,1720836640526,-150.0,0.00013842,2]
[331915782,1720836640535,-150.0,0.00013844,2]
[331915783,1720836640547,-150.0,0.00013844,2]
[331915784,1720836640556,-150.0,0.00013845,2]
[331915785,1720836640565,-278.46201988,0.00013845,2]
[331915786,1720836640575,-150.0,0.00013846,2]
[331915787,1720836640584,-493.47790528,0.00013849,2]
[331915788,1720836640593,-159.11328043,0.0001385,2]
[331915789,1720836640602,-150.0,0.00013852,2]
[331915790,1720836640611,-150.0,0.00013853,2]
[331915791,1720836640621,-150.0,0.00013856,2]
[331915792,1720836640630,-150.0,0.00013856,2]
[331915793,1720836640640,-150.0,0.00013858,2]
[331915794,1720836640649,-150.0,0.00013858,2]
[331915795,1720836640658,-150.0,0.0001386,2]
[331915796,1720836640668,-150.0,0.00013861,2]
[331915797,1720836640677,-150.0,0.00013862,2]
[331915798,1720836640686,-150.0,0.00013862,2]
[331915799,1720836640696,-420.0,0.00013865,2]
[331915800,1720836640705,-150.0,0.0001387,2]
[331915801,1720836640714,-150.0,0.00013871,2]
[331915802,1720836640724,-150.0,0.00013871,2]
[331915803,1720836640733,-174.12,0.00013871,2]
[331915804,1720836640742,-150.0,0.00013872,2]
[331915805,1720836640752,-278.46201988,0.00013873,2]
[331915806,1720836640761,-150.0,0.00013873,2]
[331915807,1720836640770,-150.0,0.00013874,2]
[331915808,1720836640779,-159.11328043,0.00013875,2]
[331915809,1720836640788,-150.0,0.00013879,2]
[331915810,1720836640797,-150.0,0.00013885,2]
[331915811,1720836640806,-150.0,0.00013888,2]
[331915812,1720836640815,-227.34202992,0.00013889,2]
[331915813,1720836640825,-196.77532771,0.00013889,2]
[331915814,1720836640834,-7500.0,0.0001389,2]
[331915815,1720836640844,-150.0,0.00013891,2]
[331915816,1720836640853,-150.0,0.00013892,2]
[331915817,1720836640863,-150.0,0.00013893,2]
[331915818,1720836640872,-150.0,0.00013894,2]
[331915819,1720836640881,-162.05113157,0.00013898,2]
[331915820,1720836640890,-171.41818575,0.00013898,2]
[331915821,1720836640899,-2560.15,0.00013898,2]
[331915822,1720836640908,-444.77464813,0.00013898,2]
[331915823,1720836640917,-207.80840771,0.00013898,2]
[331915824,1720836640927,-500.0,0.00013898,2]
[331915825,1720836640936,-177.0158332,0.00013898,2]
[331915826,1720836640946,-500.0,0.00013898,2]
[331915827,1720836640956,-206.77881246,0.00013898,2]
[331915828,1720836640966,-244.57940383,0.00013898,2]
[331915829,1720836640977,-291.1088,0.00013899,2]
[331915830,1720836640988,-110835.2788,0.00013899,2]
[331915831,1720836640998,-3125.2468,0.00013899,2]
[331915832,1720836641008,-324.85311513,0.00013899,2]
[331915833,1720836641018,-155.45036917,0.00013899,2]
[331915834,1720836641027,-732.3398746,0.00013899,2]
[331915835,1720836641039,-197.3202,0.000139,2]
[331915836,1720836641049,-5645.725,0.000139,2]
[331915837,1720836641059,-349.1979,0.000139,2]
[331915838,1720836641068,-279.29512999,0.000139,2]
[331915839,1720836641077,-1010.60931404,0.000139,2]
[331915840,1720836641087,-2200.15607955,0.000139,2]
[331915841,1720836641096,-159.11328043,0.000139,2]
[331915842,1720836641105,-658.37305223,0.000139,2]
[331915843,1720836641115,-324.85311512,0.000139,2]
[331915844,1720836641124,-150.0,0.000139,2]
[331915845,1720836641134,-150.0,0.000139,2]
[331915846,1720836641145,-278.46201988,0.000139,2]
[331915847,1720836641155,-150.0,0.00013901,2]
[331915848,1720836641165,-150.0,0.00013906,2]
[331915849,1720836641174,-150.0,0.00013906,2]
[331915850,1720836641184,-150.0,0.00013907,2]
[331915851,1720836641195,-150.0,0.0001391,2]
[331915852,1720836641206,-150.0,0.00013914,2]
[331915853,1720836641217,-150.0,0.00013916,2]
[331915854,1720836641229,-150.0,0.0001392,2]
[331915855,1720836641239,-150.0,0.00013922,2]
[331915856,1720836641255,-150.0,0.00013925,2]
[331915857,1720836641266,-266.18761356,0.00013927,2]
[331915858,1720836641277,-150.0,0.0001393,2]
[331915859,1720836641287,-150.0,0.0001393,2]
[331915860,1720836641297,-150.0,0.0001393,2]
[331915861,1720836641307,-150.0,0.00013943,2]
[331915862,1720836641321,-150.0,0.00013945,2]
[331915863,1720836641333,-150.0,0.00013947,2]
[331915864,1720836641343,-150.0,0.0001395,2]
[331915865,1720836641354,-150.0,0.0001395,2]
[331915866,1720836641365,-2560.15,0.00013953,2]
[331915867,1720836641376,-500.0,0.00013953,2]
[331915868,1720836641387,-500.0,0.00013953,2]
[331915869,1720836641397,-150.0,0.00013959,2]
[331915870,1720836641409,-158.4759071,0.00013964,2]
[331915871,1720836641418,-3099.71655414,0.00013964,2]
[331915872,1720836641429,-150.0,0.00013964,2]
[331915873,1720836641440,-150.0,0.00013967,2]
[331915874,1720836641450,-150.0,0.00013967,2]
[331915875,1720836641460,-150.0,0.00013971,2]
[331915876,1720836641470,-150.0,0.00013981,2]
[331915877,1720836641479,-150.0,0.00013984,2]
[331915878,1720836641488,-150.0,0.00013986,2]
[331915879,1720836641498,-150.0,0.00013989,2]
[331915880,1720836641508,-171.92506643,0.00013989,2]
[331915881,1720836641517,-198.49354233,0.0001399,2]
[331915882,1720836641526,-150.0,0.00013992,2]
[331915883,1720836641536,-150.0,0.00013997,2]
[331915884,1720836641546,-500.0,0.00013997,2]
[331915885,1720836641555,-283.79933411,0.00013997,2]
[331915886,1720836641565,-500.0,0.00013997,2]
[331915887,1720836641574,-500.0,0.00013997,2]
[331915888,1720836641737,-500.0,0.00013997,2]
[331915889,1720836641748,-526.13723732,0.00013997,2]
[331915890,1720836641758,-307.646993,0.00013997,2]
[331915891,1720836641767,-258.71480197,0.00013997,2]
[331915892,1720836641777,-313.83910198,0.00013997,2]
[331915893,1720836641786,-298.44518791,0.00013997,2]
[331915894,1720836641795,-500.0,0.00013997,2]
[331915895,1720836641804,-247.721366,0.00013997,2]
[331915896,1720836641814,-178.0031514,0.00013997,2]
[331915897,1720836641823,-281.98619505,0.00013997,2]
[331915898,1720836641832,-1711.37,0.00013997,2]
[331915899,1720836641842,-500.0,0.00013997,2]
[331915900,1720836641851,-500.0,0.00013997,2]
[331915901,1720836641861,-500.0,0.00013997,2]
[331915902,1720836641871,-364.38691866,0.00013998,2]
[331915903,1720836641880,-500.0,0.00013998,2]
[331915904,1720836641889,-500.0,0.00013998,2]
[331915905,1720836641899,-500.0,0.00013998,2]
[331915906,1720836641910,-631.5214021,0.00013998,2]
[331915907,1720836641919,-500.0,0.00013998,2]
[331915908,1720836641929,-169.44184665,0.00013998,2]
[331915909,1720836641940,-500.0,0.00013998,2]
[331915910,1720836641952,-1780.39,0.00013998,2]
[331915911,1720836641963,-500.0,0.00013998,2]
[331915912,1720836641972,-500.0,0.00013998,2]
[331915913,1720836641981,-500.0,0.00013998,2]
[331915914,1720836641991,-500.0,0.00013998,2]
[331915915,1720836642000,-500.0,0.00013998,2]
[331915916,1720836642010,-500.0,0.00013998,2]
[331915917,1720836642020,-296.11628813,0.00013998,2]
[331915918,1720836642030,-500.0,0.00013998,2]
[331915919,1720836642039,-228.07165776,0.00013998,2]
[331915920,1720836642049,-528.69843604,0.00013998,2]
[331915921,1720836642059,-513.80112371,0.00013998,2]
[331915922,1720836642069,-500.0,0.00013998,2]
[331915923,1720836642079,-551.5242308,0.00013998,2]
[331915924,1720836642089,-575.66405698,0.00013998,2]
[331915925,1720836642099,-502.80704739,0.00013998,2]
[331915926,1720836642109,-535.03784505,0.00013998,2]
[331915927,1720836642118,-557.9667673,0.00013998,2]
[331915928,1720836642128,-528.28744857,0.00013998,2]
[331915929,1720836642139,-500.0,0.00013998,2]
[331915930,1720836642149,-534.53714648,0.00013998,2]
[331915931,1720836642159,-514.23332024,0.00013998,2]
[331915932,1720836642169,-280.74520312,0.00013998,2]
[331915933,1720836642178,-222.66795296,0.00013999,2]
[331915934,1720836642187,-500.0,0.00013999,2]
[331915935,1720836642197,-358.82842347,0.00013999,2]
[331915936,1720836642207,-102337.0536202,0.00013999,2]
[331915937,1720836642218,-16182.1153686,0.00013999,2]
[331915938,1720836642228,-5038.0448849,0.00013999,2]
[331915939,1720836642237,-34722.65270524,0.00013999,2]
[331915940,1720836642247,-1204.45,0.00013999,2]
[331915941,1720836642257,-209.38094977,0.00013999,2]
[331915942,1720836642267,-155.42621298,0.00013999,2]
[331915943,1720836642276,-155.44387703,0.00013999,2]
[331915944,1720836642285,-303.98456377,0.00013999,2]
[331915945,1720836642295,-225.16183893,0.00013999,2]
[331915946,1720836642306,-155.31646413,0.00013999,2]
[331915947,1720836642318,-155.18918966,0.00013999,2]
[331915948,1720836642329,-476.15654102,0.00013999,2]
[331915949,1720836642338,-389617.8797641,0.00014,2]
[331915950,1720836642348,-813391.97232031,0.00014,2]
[331915951,1720836642359,-2345379.50363684,0.00014,2]
[331915952,1720836642374,-614264.17672977,0.00014,2]
[331915953,1720836642385,-50045.45664028,0.00014,2]
[331915954,1720836642399,-308.951889,0.00014,2]
[331915955,1720836642481,-155.16698726,0.00013899,2]
[331915956,1720836642490,-225.64639698,0.00013997,2]
[331915957,1720836642500,-5111.96030792,0.00014,2]
[331915958,1720836642562,-304.78291063,0.00013543,2]
[331915959,1720836642572,-2893.6812056,0.00014,2]
[331915960,1720836642583,-1540.05138992,0.00014,2]
[331915989,1720836646656,-663.10049609,0.00013574,2]
[331915994,1720836646670,-194.06324621,0.00014,2]
[331916023,1720836646922,-469.30906079,0.00014,2]
[331916046,1720836843048,453.62,0.00010994,2]
[331916051,1720837364493,156.98,0.000113,2]
[331916052,1720837444319,159.78791792,0.00011199,2]
[331916053,1720837473349,298.81069326,0.00011199,2]
[331916054,1720837511997,243.6516929,0.00011199,2]
[331916055,1720837522359,454.95,0.00010817,2]
[331916056,1720837573720,243.97083571,0.00011199,2]
[331916065,1720837709192,151.73656444,0.00012,30]
[331916117,1720837831792,-3675.70013973,0.000118,2]
[331916118,1720837831802,-300.0,0.00011999,2]
[331916119,1720837831811,-7629.37361244,0.00012,2]
[331916120,1720837831937,-2871.74706476,0.00012,2]
[331916121,1720837831947,-250.0,0.00012547,2]
[331916122,1720837831957,-1000.0,0.00012715,2]
[331916123,1720837831968,-171.0,0.00012726,2]
[331916124,1720837831977,-210.02,0.00012739,2]
[331916125,1720837831987,-1468.7,0.00012812,2]
[331916126,1720837831996,-206.19,0.00012964,2]
[331916127,1720837832006,-1384.79,0.00012999,2]
[331916128,1720837832015,-1250.0,0.00013,2]
[331916129,1720837832024,-454.95,0.00013081,2]
[331916130,1720837832034,-400.0,0.000131,4]
[331916131,1720837832043,-371.10892981,0.00013128,2]
[331916132,1720837832052,-1734.36,0.00013128,2]
[331916133,1720837832061,-300.0,0.00013128,2]
[331916134,1720837832071,-1295.98,0.00013141,2]
[331916135,1720837832080,-150.0,0.00013199,2]
[331916136,1720837832089,-832.53,0.000132,2]
[331916137,1720837832099,-832.53,0.000132,2]
[331916138,1720837832109,-832.53,0.000132,2]
[331916139,1720837832119,-166.04,0.000132,2]
[331916140,1720837832128,-900.0,0.000132,4]
[331916141,1720837832138,-1348.46,0.000132,2]
[331916142,1720837832147,-832.53,0.000133,2]
[331916143,1720837832158,-832.53,0.000133,2]
[331916144,1720837832168,-832.53,0.000133,2]
[331916145,1720837832178,-1400.0,0.000133,4]
[331916146,1720837832188,-165.07,0.0001337,2]
[331916147,1720837832198,-529.13,0.0001337,2]
[331916148,1720837832207,-529.13,0.0001337,2]
[331916149,1720837832217,-529.13,0.0001337,2]
[331916150,1720837832226,-151.29,0.000134,2]
[331916151,1720837832235,-635.55,0.000134,2]
[331916152,1720837832245,-535.38,0.000134,2]
[331916153,1720837832256,-848.05,0.000134,2]
[331916154,1720837832268,-245.31,0.000134,2]
[331916155,1720837832279,-362.12,0.000134,2]
[331916156,1720837832289,-832.53,0.000134,2]
[331916157,1720837832299,-303.01,0.000134,2]
[331916158,1720837832308,-1900.0,0.000134,4]
[331916159,1720837832318,-157.37127731,0.00013472,2]
[331916160,1720837832328,-2400.0,0.000135,4]
[331916161,1720837832337,-284.66220743,0.00013516,2]
[331916162,1720837832346,-400.0,0.000136,4]
[331916163,1720837832355,-228.641867,0.00013667,2]
[331916164,1720837832365,-417.02,0.00013699,2]
[331916165,1720837832374,-1236.81,0.00013699,5]
[331916166,1720837832383,-400.0,0.000137,5]
[331916167,1720837832393,-1137.8286984,0.0001372,2]
[331916168,1720837832402,-1631.50135618,0.00013736,2]
[331916169,1720837832411,-530.24495556,0.00013759,2]
[331916170,1720837832421,-221.6677612,0.0001379,2]
[331916171,1720837832430,-188.82851776,0.0001379,2]
[331916172,1720837832440,-150.0,0.00013797,2]
[331916173,1720837832451,-1652.364,0.00013799,2]
[331916174,1720837832462,-320.17137018,0.00013799,2]
[331916175,1720837832472,-400.0,0.000138,5]
[331916176,1720837832482,-150.0,0.00013802,2]
[331916177,1720837832491,-320.17137013,0.00013802,2]
[331916178,1720837832502,-320.17137013,0.00013814,2]
[331916179,1720837832512,-320.17137013,0.00013827,2]
[331916180,1720837832523,-320.17137013,0.00013839,2]
[331916181,1720837832535,-188.82851775,0.00013844,2]
[331916182,1720837832545,-616.18959064,0.00013849,2]
[331916183,1720837832555,-320.17137013,0.00013851,2]
[331916184,1720837832565,-150.0,0.00013859,2]
[331916185,1720837832575,-320.17137013,0.00013863,2]
[331916186,1720837832584,-320.17137013,0.00013876,2]
[331916187,1720837832594,-500.0,0.00013879,2]
[331916188,1720837832604,-2419.99,0.00013879,2]
[331916189,1720837832614,-206.94282567,0.00013879,2]
[331916190,1720837832624,-264647.30320281,0.0001388,2]
[331916191,1720837832640,-320.17137013,0.00013888,2]
[331916192,1720837832651,-348.59207456,0.0001389,2]
[331916193,1720837832660,-150.0,0.00013896,2]
[331916194,1720837832670,-2247.08,0.00013898,2]
[331916195,1720837832680,-436.2108,0.00013898,2]
[331916196,1720837832692,-174.98028023,0.000139,2]
[331916197,1720837832702,-400.0,0.000139,5]
[331916198,1720837832715,-320.17137013,0.000139,2]
[331916199,1720837832724,-188.82851775,0.000139,2]
[331916200,1720837832734,-150.0,0.00013911,2]
[331916201,1720837832745,-150.46,0.00013918,2]
[331916202,1720837832755,-150.0,0.00013918,2]
[331916203,1720837832764,-500.0,0.00013934,2]
[331916204,1720837832775,-2419.99,0.00013934,2]
[331916205,1720837832787,-2247.08,0.00013953,2]
[331916206,1720837832965,-500.0,0.00013989,2]
[331916207,1720837832975,-2419.99,0.00013989,2]
[331916208,1720837832985,-253.60504205,0.00013989,2]
[331916209,1720837832994,-475.88438208,0.00013989,2]
[331916210,1720837833003,-16543.6119132,0.00013998,2]
[331916211,1720837833013,-3492.6098684,0.00013998,2]
[331916212,1720837833022,-519.47007269,0.00013998,2]
[331916213,1720837833032,-70694.5550322,0.00013998,2]
[331916214,1720837833041,-500.0,0.00013999,2]
[331916215,1720837833051,-251.72824957,0.00013999,2]
[331916216,1720837833061,-1321.73891649,0.00013999,5]
[331916217,1720837833070,-1321.7389165,0.00013999,5]
[331916218,1720837833079,-178.52810889,0.00013999,2]
[331916219,1720837833088,-1154.27,0.00013999,2]
[331916220,1720837833097,-500.0,0.00013999,2]
[331916221,1720837833105,-154.51167888,0.00013999,2]